Cogmind - Beta 15 @@@ ROGUE MODE // 2025.06.05 @ 23:19:02 Player: Olafz Result: Destroyed by G-34 Mercenary with Small Laser Performance ------------- Evolutions (1) 500 Regions Visited (3) 600 Robots Destroyed (7) 35 Value Destroyed (254) 254 Prototype IDs (0) 0 Alien Tech Used (0) 0 Bonus (0) 0 TOTAL SCORE: 1389 Bonus ------- None Cogmind --------- Core Integrity 0/400 Matter 300/300 Energy 100/100 System Corruption 0% Temperature Cool (6) Movement Core (350) Ox6 Location -9/Materials Parts ------- > --- POWER (1) -------- (None) > --- PROPULSION (2) --- (None) > --- UTILITY (4) ------ Large Storage Unit > --- WEAPON (2) ------- (None) > --- INVENTORY (15) --- Light Ion Engine Improved Ion Engine Carbon-fiber Leg Titanium Leg Small Storage Unit Hammer Hammer Great Maul Peak State ------------ > --- POWER ------------ Ion Engine > --- PROPULSION ------- Aluminum Leg Aluminum Leg > --- UTILITY ---------- Improved Heat Sink Large Storage Unit > --- WEAPON ----------- Medium Laser Heavy Assault Rifle > --- INVENTORY -------- Light Ion Engine Improved Ion Engine Titanium Leg Small Storage Unit Hammer Hammer Great Maul [Rating: 11] Favorites ----------- Power Light Ion Engine Engine Light Ion Engine Propulsion Aluminum Leg Leg Aluminum Leg Utility Large Storage Unit Device Improved Heat Sink Storage Large Storage Unit Weapon Medium Laser Energy Gun Medium Laser Ballistic Gun Light Assault Rifle Build | -11 -10 -10 -9 ------- Run | Yrd Mat Min Mat Slots Evolved 2 | . . . 2 Power . | . . . . Propulsion . | . . . . Utility 2 | . . . 2 Weapon . | . . . . Parts Attached 10 | 5 3 1 1 Power 2 | 1 . 1 . Engine 2 | 1 . 1 . Core . | . . . . Reactor . | . . . . Propulsion 2 | 2 . . . Treads . | . . . . Leg 2 | 2 . . . Wheel . | . . . . Hover . | . . . . Flight . | . . . . Utility 3 | 1 2 . . Device 1 | . 1 . . Storage 2 | 1 1 . . Processor . | . . . . Hackware . | . . . . Protection . | . . . . Artifact . | . . . . Weapon 3 | 1 1 . 1 Energy Gun 1 | . 1 . . Energy Cannon . | . . . . Ballistic Gun 2 | 1 . . 1 Ballistic Cannon . | . . . . Launcher . | . . . . Special Weapon . | . . . . Impact Weapon . | . . . . Slashing Weapon . | . . . . Piercing Weapon . | . . . . Special Melee Weapon . | . . . . Unidentified Prototypes . | . . . . Parts Lost 8 | . 1 1 6 Power 2 | . 1 . 1 Propulsion 2 | . . . 2 Utility 1 | . . . 1 Weapon 3 | . . 1 2 Highest Loss Streak 6 | . 1 1 6 To Critical Strikes . | . . . . Average Backups 4 | . 2 4 7 Power 1 | . 1 1 1 Propulsion . | . . . 1 Utility . | . . 1 1 Weapon 2 | . 1 2 3 Tool/Special . | . . . . Unused Backups 5 | . . . 5 Power 2 | . . . 2 Propulsion 1 | . . . 1 Utility . | . . . . Weapon 2 | . . . 2 Tool/Special . | . . . . Average Slot Usage (%) 75 | . 81 80 61 Engine 6 | . 9 . 9 Leg 25 | . 28 28 19 Device 8 | . 1 14 9 Storage 17 | . 25 14 11 Energy Gun 8 | . 3 14 9 Ballistic Gun 9 | . 14 9 2 Peak Build Rating 11 | 5 8 9 11 Average Rating 7 | 3 6 7 8 On Entrance 5 | . 5 8 9 Naked Turns . | . . . . Heaviest Build 31 | 9 29 28 31 Greatest Support 20 | 20 20 20 20 Greatest Overweight (x) 6 | . 1 1 6 Average Overweight (x) . | . . 1 1 Largest Inventory Capacity 15 | 8 15 15 15 Average Capacity 14 | 6 14 15 15 Most Carried 8 | 1 4 6 8 Average Carried 4 | . 2 4 7 Final Capacity 15 | 8 15 15 15 Final Carried 8 | 1 4 6 8 Class Distribution -------------------- 100% | Mutant Dominant Class ---------------- Mutant | -10/Materials Mutant | -10/Mines Mutant | -9/Materials Resources | -11 -10 -10 -9 ----------- Run | Yrd Mat Min Mat Matter Collected 342 | 154 77 72 39 Remotely . | . . . . Salvage Created 331 | . 77 89 165 Parts 14 | . 5 3 6 Haulers Intercepted 1 | . . . 1 Recyclers Shooed . | . . . . Parts Field Recycled . | . . . . Retrieved Matter . | . . . . Parts Self-Destructed . | . . . . Prevented . | . . . . Kills | -11 -10 -10 -9 ------- Run | Yrd Mat Min Mat Combat Hostiles Destroyed 6 | . 2 2 2 Guns 6 | . 2 2 2 Classes Destroyed 3 | . 1 . 2 Hauler 1 | . . . 1 Grunt 4 | . 2 2 . Sentry 2 | . . . 2 Best Kill Streak 2 | . 1 1 2 Combat Bots Only 1 | . 1 1 1 Max Kills in Single Turn 1 | . 1 1 1 Gunslinging . | . . . . Exploded . | . . . . Melee . | . . . . Uniques/NPCs Destroyed . | . . . . Combat | -11 -10 -10 -9 -------- Run | Yrd Mat Min Mat Hostile Shots Fired 164 | . 19 21 124 Missed 49 | . 10 3 36 Hits 115 | . 9 18 88 Projectile 115 | . 9 18 88 Critical Strikes 3 | . . 1 2 Damage Taken 1318 | . 128 241 949 Core 549 | . 24 122 403 Absorbed by Shields . | . . . . Core Remaining (%) 70 | 100 . 41 . Volleys Fired 51 | . 16 13 22 Largest 2 | . 1 2 2 Hottest 73 | . 20 70 73 Shots Fired 67 | . 16 20 31 Gun 67 | . 16 20 31 Cannon . | . . . . Launcher . | . . . . Special . | . . . . Kinetic 36 | . 16 7 13 Thermal 31 | . . 13 18 Explosive . | . . . . Electromagnetic . | . . . . Robot Hit Streak 12 | . 6 6 12 Robot Miss Streak 3 | . 1 2 3 Penetration Max . | . . . . Secondary Targets 1 | . . . 1 Max Gunslinging Chain 1 | . . . 1 Shots Hit Robots 51 | . 13 15 23 Core Hits 18 | . 6 5 7 Critical Kills . | . . . . Critical Parts Destroyed . | . . . . Critical Strikes 1 | . . . 1 Burn 1 | . . . 1 Melee Attacks . | . . . . Impact . | . . . . Slashing . | . . . . Piercing . | . . . . Sneak Attacks . | . . . . Combat Hostiles . | . . . . Follow-up Attacks . | . . . . Damage Inflicted 569 | . 101 161 307 Guns 569 | . 101 161 307 Cannons . | . . . . Explosions . | . . . . Melee . | . . . . Ramming . | . . . . Kinetic 271 | . 101 37 133 Thermal 298 | . . 124 174 Explosive . | . . . . Electromagnetic . | . . . . Impact . | . . . . Slashing . | . . . . Piercing . | . . . . Highest Corruption . | . . . . Average Corruption . | . . . . Corruption Purged . | . . . . Corruption Blocked . | . . . . Overload Shots . | . . . . Overflow Damage . | . . . . Projectiles . | . . . . Explosions . | . . . . Melee . | . . . . Knockbacks . | . . . . Impact . | . . . . Kinetic . | . . . . Secondary . | . . . . Self-Inflicted Damage . | . . . . Shots . | . . . . Rammed . | . . . . Targets Rammed . | . . . . Kicked . | . . . . Crushed . | . . . . Highest Temperature 23 | . 9 23 14 Average Temperature 7 | . 5 8 7 Received Heat Transfer 444 | . 75 159 210 Siege Activations . | . . . . Martial Activations . | . . . . Shielding Activations . | . . . . Robots Disrupted . | . . . . Combat Hostiles . | . . . . Robots Corrupted . | . . . . Combat Hostiles . | . . . . Parts Fried . | . . . . Impact Corruptions . | . . . . Robots Melted . | . . . . Combat Hostiles . | . . . . Parts Melted 6 | . . 1 5 Heat Transferred 962 | . . 370 592 Parts Sabotaged . | . . . . Parts Stolen . | . . . . Parts Stripped . | . . . . Power Chain Reactions . | . . . . Alert | -11 -10 -10 -9 ------- Run | Yrd Mat Min Mat Maximum Alert Level . | . . . . Low Security (%) 100 | 100 100 100 100 Level 1 . | . . . . Level 2 . | . . . . Level 3 . | . . . . Level 4 . | . . . . Level 5 . | . . . . High Security . | . . . . Max Security . | . . . . Peak Influence 37 | . 30 30 37 Initial . | . . . . Average 5 | . 6 3 6 Influence Increases 227 | . 80 50 97 Destroy 0b10 Robot/C 120 | . 40 40 40 Destroy 0b10 Robot/NC 5 | . . . 5 Destroy Leader 42 | . 10 10 22 Successful Hack 30 | . 30 . . Lose Combat Pursuer 30 | . . . 30 Influence Decreases 222 | . 80 50 92 Time Decay 160 | . 70 40 50 Lost Part 62 | . 10 10 42 Squads Dispatched 1 | . . 1 . Investigation 1 | . . 1 . Extermination . | . . . . Reinforcement . | . . . . Assault . | . . . . Garrison . | . . . . Intercept . | . . . . Searches Triggered . | . . . . Construction Impeded . | . . . . Haulers Reinforced . | . . . . Active Scanning Responses . | . . . . Cargo Convoy Interrupts . | . . . . Stealth | -11 -10 -10 -9 --------- Run | Yrd Mat Min Mat Distress Signals 1 | . 1 . . Communications Jammed . | . . . . Distress Signals . | . . . . Times Spotted 22 | . 5 4 13 Peak Tracking Total 9 | . 4 2 9 Tactical Retreats 1 | . . . 1 Traps | -11 -10 -10 -9 ------- Run | Yrd Mat Min Mat Traps Triggered . | . . . . Indirectly . | . . . . Trap Hack Attempts . | . . . . Triggered . | . . . . Disarmed . | . . . . Reprogrammed . | . . . . Reused . | . . . . Traps Extracted . | . . . . Installed . | . . . . Triggered . | . . . . Machines | -11 -10 -10 -9 ---------- Run | Yrd Mat Min Mat Machines Disabled . | . . . . Max in Single Turn . | . . . . Machines Repaired . | . . . . Machines Dismantled . | . . . . Machines Sabotaged . | . . . . Overloaded Fab Kills . | . . . . Hacking | -11 -10 -10 -9 --------- Run | Yrd Mat Min Mat Machines Accessed 2 | . 1 1 . Terminals 1 | . 1 . . Fabricators . | . . . . Repair Stations . | . . . . Recycling Units . | . . . . Scanalyzers . | . . . . Garrison Access . | . . . . Total Hacks 3 | . 2 1 . Successful 3 | . 2 1 . Failed . | . . . . Catastrophic . | . . . . Database Lockouts . | . . . . Manual 2 | . 2 . . Terminals 2 | . 2 . . Fabricators . | . . . . Repair Stations . | . . . . Recycling Units . | . . . . Scanalyzers . | . . . . Garrison Access . | . . . . Terminal Hacks 2 | . 1 1 . Open Door 1 | . . 1 . Branch Access Points 1 | . 1 . . Fabricator Hacks . | . . . . Repair Station Hacks . | . . . . Recycling Unit Hacks . | . . . . Scanalyzer . | . . . . Garrison Access Hacks . | . . . . Unauthorized Hacks 1 | . 1 . . Terminals 1 | . 1 . . Botnet 1 | . 1 . . Fabricators . | . . . . Repair Stations . | . . . . Recycling Units . | . . . . Scanalyzers . | . . . . Garrison Access . | . . . . Data Cores Recovered . | . . . . Used . | . . . . Hacking Detections 1 | . 1 . . Full Trace Events . | . . . . Feedback Events . | . . . . Feedback Blocked . | . . . . Robot Schematics Acquired . | . . . . Robots Built . | . . . . Authchips . | . . . . Time . | . . . . Total Robot Build Rating . | . . . . Part Schematics Acquired . | . . . . Parts Built . | . . . . Authchips . | . . . . Time . | . . . . Total Part Build Rating . | . . . . Parts Repaired . | . . . . Time . | . . . . Parts Recycled . | . . . . Recycled Matter . | . . . . Retrieved Matter . | . . . . Retrieved Components . | . . . . Parts Scanalyzed . | . . . . Part Schematics Acquired . | . . . . Parts Damaged . | . . . . Bothacking | -11 -10 -10 -9 ------------ Run | Yrd Mat Min Mat Used RIF Installer . | . . . . Robots Hacked . | . . . . Non-combat . | . . . . Combat . | . . . . Robot Hacks Applied . | . . . . Relay Couplers Released . | . . . . Fabnet Peak Effective % . | . . . . Robots Rewired . | . . . . Allies Hacked . | . . . . Hacks Repelled . | . . . . Allies | -11 -10 -10 -9 -------- Run | Yrd Mat Min Mat Total Allies . | . . . . Largest Group . | . . . . Highest-Rated Group . | . . . . Highest-Rated Ally . | . . . . Total Orders . | . . . . Ally Attacks . | . . . . Total Damage . | . . . . Kills . | . . . . Allies Corrupted . | . . . . Allies Melted . | . . . . Intel | -11 -10 -10 -9 ------- Run | Yrd Mat Min Mat Active Infowar (turns) . | . . . . Robot Analysis Total . | . . . . Derelict Logs Recovered . | . . . . Drone Launches . | . . . . Drone Recoveries . | . . . . Exploration | -11 -10 -10 -9 ------------- Run | Yrd Mat Min Mat Turns Passed 917 | 54 312 287 264 Spaces Moved 427 | 43 148 133 103 Core 13 | 7 . . 6 Treads . | . . . . Legs 414 | 36 148 133 97 Wheels . | . . . . Hover . | . . . . Flight . | . . . . Fastest Speed 50 | 50 120 190 190 Average Speed 182 | 108 183 190 203 Slowest Speed 350 | 120 190 190 350 Overloaded Moves . | . . . . Propulsion Burnouts . | . . . . Robots Hopped . | . . . . Potential Cave-ins . | . . . . Cave-ins Triggered . | . . . . Exploration Rate (%) 21 | 3 35 31 17 Regions Visited 3 Branch Regions 1 Pre-discovered Areas . | . . . . Known Exits Taken 1 | . 1 . . Unknown Exits Taken 2 | 1 . 1 . Scrap Searched . | . . . . Spaces Dug . | . . . . Terrain Destroyed . | . . . . Melee . | . . . . Projectile . | . . . . AOE . | . . . . Terrain Rammed . | . . . . Walls Destroyed . | . . . . Machines Disabled . | . . . . Actions | -11 -10 -10 -9 --------- Run | Yrd Mat Min Mat Total 500 | 48 175 149 128 Wait 7 | . 6 1 . Move 424 | 42 147 132 103 Hop . | . . . . Pick Up 7 | 1 2 2 2 Fast Attach 10 | 5 3 1 1 Attach . | . . . . Detach 1 | . 1 . . Swap . | . . . . Drop . | . . . . Fire 51 | . 16 13 22 Melee . | . . . . Ram . | . . . . Kick . | . . . . Crush . | . . . . Escape Stasis . | . . . . Rewire . | . . . . Trap . | . . . . Miscellaneous . | . . . . Route ------- -11/Scrapyard -10/Materials -10/Mines -9/Materials (discovered 1 exit: [*Min]) History --------- Turn | Location | Event 14 | -11/Scrapyard | Discovered new exit (range 14) 55 | -11/Scrapyard | Entered Materials 162 | -10/Materials | Identified exit to Mines 317 | -10/Materials | Build established: Mutant 367 | -10/Materials | Entered Mines 409 | -10/Mines | Found a hidden stash of uninstalled traps 598 | -10/Mines | Discovered new exit (range 9) 623 | -10/Mines | Met a Derelict shopkeep closing up shop 627 | -10/Mines | Core integrity fell below 50% 654 | -10/Mines | Entered Materials 654 | -9/Materials | Evolved 2 slots: Utility x2 890 | -9/Materials | Discovered new exit (range 11) 909 | -9/Materials | Core integrity fell below 50% 918 | -9/Materials | Core integrity fell below 20% 918 | -9/Materials | Destroyed by G-34 Mercenary with Small Laser Last Messages --------------- Y-45 Defender suffers critical hit (Burn). Aluminum Leg destroyed. Imp. Ion Engine melted. Hvy. Assault Rifle melted. Y-45 Defender destroyed. Switching to secondary target: S-10 Pest. Ion Engine destroyed. Acquired 14 matter. R-06 Scavenger collects Lgt. Treads. Med. Laser destroyed. Acquired 3 matter. R-06 Scavenger collects Heat Sink. Acquired 3 matter. Imp. Heat Sink destroyed. EXIT=FOUND K-01 Serf collects debris. Hvy. Assault Rifle destroyed. K-01 Serf collects debris. Aluminum Leg destroyed. K-01 Serf collects debris. Map ----- +----------------------------------------------------+ | ?????????????????????????????????????????????????? | | ?????????????????????????????????????????????????? | | ?????????????????????????????????????????????????? | | ?????????????????????????????????????????????????? | | ?????????????????????????????????????????????????? | | ?????????????????????????????????????????????????? | | ?????????????????????????????????????????????????? | | ?????????????????????????????????????????????????? | | ?????????????????????????????????????????????????? | | ?????????????????????????????????????????????????? | | ?????????????????????????????????????????????????? | | ?????????????????????????????????????????????????? | | ?????????????????????????????????????????????????? | | ?????????????????????????????????????????????????? | | ????????????????????????????????? ????????????? | | ???????????????????????????????? ????????????? | | ??????????????????????????????? #???????????? | | ?????????????????????????????? #???????????? | | ????????????????????????????? #???????????? | | ????????????????????????????? +???????????? | | ?????????????#?????????????? #???????????? | | ?????????????# ?????####### #???????????? | | ?????????????# g##### # a #???????????? | | ######???????# k #???????????? | | """ #???????# gg < #???????????? | | """ #???????# Y @ "T" ?????????????? | | """ #???????????##+## ##+####???????????????? | | #???????????????## ##?????????????????????? | | #????????????????# #??????????????????????? | | ?????????????????# #??????????????????????? | | ##+###########????????#s #??????????????????????? | | #???????## gg##?????????????????????? | | *% #########!s ########??????????????? | | % !==%==!s ??????????? | | #########/############= ??????????? | | # # ##??????#= r ??????????? | | # """ # %#??????# #######+###???????????? | | # "R" # =] ##??????#######?????????????????????? | | # " " # ] #???????????????????????????????????? | | # # #???????????????????????????????????? | | + [ # #???????????????????????????????????? | | # ########???????????????????????????????????? | | # """ #??????????????????????????????????????????? | | # """ #??????????????????????????????????????????? | | # """ #??????????????????????????????????????????? | | # """ #??????????????????????????????????????????? | | # #??????????????????????????????????????????? | | #####?#??????????????????????????????????????????? | | ?????????????????????????????????????????????????? | | ?????????????????????????????????????????????????? | +----------------------------------------------------+ Best States ------------- Heat Dissipation 42 Energy Generation 10 Energy Capacity 250 Matter Stores 300 Matter Capacity 300 Sight Range 16 Terrain Scan Density 10 Evasion (%) 55 Item Schematics ----------------- None Robot Schematics ------------------ None Fabricated ------------ Nothing Repaired ---------- Nothing Alien Tech Used ----------------- None Achievements -------------- None Challenges ------------ None Game ------ Seed DecoderImprovedFacilitator Manual? 0 Play Time 00:06:40 Cumulative 269.1 hours Start 2025.06.05 @ 23:13:15 End 2025.06.05 @ 23:19:02 Sessions 1 Manual Loads 0 Difficulty Rogue Special Mode None Game No. 513 Rogue 511 Adventurer 2 Explorer 0 Win Type - Total 16 Types 11/0/1/3/1/0/0/0/0/0 Lore% 74 Gallery% 64 Achievement% 58 Wizard Run 0 Options --------- Layout 0 ASCII 0 Keyboard 1 Movement Numpad Keybinds 1 Fullscreen 2 Font 24/Smallcaps Map View 76x50 Zoom Use 0% Tactical HUD 1 Map Filters NONE Filters NONE Steam 1 RUN: 2d178dac-a739-4376-97f4-dd99d0292910